fUST/lending_fUST_20250820
["ID","MTS","AMOUNT","RATE_DAILY","PERIOD"]
[380312634,1755655844355,-151.0,0.00024552,2]
[380312635,1755655844368,-151.0,0.00024552,2]
[380312636,1755655844378,-151.0,0.00024552,2]
[380312637,1755655844390,-151.0,0.00024552,2]
[380312638,1755655844402,-151.0,0.00024552,2]
[380312639,1755655844418,-151.0,0.00024552,2]
[380312640,1755655844430,-151.0,0.00024552,2]
[380312641,1755655844442,-151.0,0.00024552,2]
[380312642,1755655844453,-151.0,0.00024552,2]
[380312643,1755655844464,-151.0,0.00024552,2]
[380312644,1755655844474,-151.0,0.00024552,2]
[380312645,1755655844485,-151.0,0.00024552,2]
[380312646,1755655844497,-151.0,0.00024552,2]
[380312647,1755655844510,-151.0,0.00024552,2]
[380312648,1755655844523,-151.0,0.00024552,2]
[380312649,1755655844535,-151.0,0.00024552,2]
[380312650,1755655844546,-151.0,0.00024552,2]
[380312651,1755655844556,-151.0,0.00024552,2]
[380312652,1755655844567,-580.8939941,0.00024575,2]
[380312653,1755655844579,-153.0,0.00024575,2]
[380312654,1755655844591,-293.9452039,0.00024575,2]
[380312655,1755655844603,-580.8939941,0.00024575,2]
[380312656,1755655844614,-160.842982,0.00024575,2]
[380312657,1755655844624,-293.9452039,0.00024575,2]
[380312658,1755655844634,-580.8939941,0.00024575,2]
[380312659,1755655844644,-153.0,0.00024575,2]
[380312660,1755655844656,-580.8939941,0.00024575,2]
[380312661,1755655844666,-160.842982,0.00024575,2]
[380312662,1755655844676,-160.842982,0.00024575,2]
[380312663,1755655844686,-580.8939941,0.00024575,2]
[380312664,1755655844697,-160.842982,0.00024575,2]
[380312665,1755655844707,-293.8943201,0.00024575,2]
[380312666,1755655844718,-580.8939941,0.00024575,2]
[380312667,1755655844729,-580.8939941,0.00024575,2]
[380312668,1755655844740,-293.8943201,0.00024575,2]
[380312669,1755655844751,-160.842982,0.00024575,2]
[380312670,1755655844762,-293.8943201,0.00024575,2]
[380312671,1755655844773,-1161.7879882,0.00024575,2]
[380312672,1755655844784,-160.842982,0.00024575,2]
[380312673,1755655844795,-306.0,0.00024603,2]
[380312674,1755655844806,-321.685964,0.00024603,2]
[380312675,1755655844820,-823.0,0.00024604,2]
[380312676,1755655844831,-1000.0,0.00024604,5]
[380312677,1755655844842,-2264.10087164,0.00024607,2]
[380312678,1755655844853,-155.34394297,0.00024613,7]
[380312679,1755655844864,-969.86,0.00024623,7]
[380312680,1755655844876,-760.0,0.00024628,2]
[380312681,1755655844888,-11184.08738196,0.00024644,2]
[380312682,1755655844900,-557.02,0.00024657,2]
[380312683,1755655844911,-380.0,0.00024658,2]
[380312684,1755655844922,-247.38855246,0.00024658,2]
[380312685,1755655844933,-200.70008527,0.00024658,2]
[380312686,1755655844944,-546.0,0.00024658,2]
[380312687,1755655844955,-248.73057721,0.00024658,2]
[380312688,1755655844967,-151.0,0.00024658,2]
[380312689,1755655844979,-153.13733001,0.00024658,2]
[380312690,1755655844990,-219.97958787,0.00024658,2]
[380312691,1755655845001,-265.94107977,0.00024658,2]
[380312692,1755655845013,-500.0,0.00024658,2]
[380312693,1755655845024,-224.56046073,0.00024658,2]
[380312694,1755655845036,-2298.70916242,0.00024662,2]
[380312695,1755655845048,-1652.72530425,0.00024707,2]
[380312696,1755655845059,-969.86,0.00024723,7]
[380312697,1755655845071,-7097.07053196,0.00024741,2]
[380312698,1755655845083,-500.0,0.00024773,2]
[380312699,1755655845094,-2800.57393865,0.000248,2]
[380312700,1755655845106,-11943.11,0.000248,7]
[380312701,1755655845119,-10134.0385896,0.000248,2]
[380312702,1755655845130,-1500.0,0.0002481,2]
[380312703,1755655845142,-969.86,0.00024823,7]
[380312704,1755655845152,-2463.6170246,0.00024825,2]
[380312705,1755655845163,-1000.0,0.00024833,2]
[380312706,1755655845173,-1200.0,0.00024834,2]
[380312707,1755655845184,-250.0,0.00024841,2]
[380312708,1755655845195,-600.0,0.00024864,2]
[380312709,1755655845205,-500.0,0.00024873,2]
[380312710,1755655845216,-501.61740736,0.00024873,2]
[380312711,1755655845228,-150.0,0.00024873,2]
[380312712,1755655845238,-12386.047165,0.0002489,2]
[380312713,1755655845249,-38044.21,0.000249,2]
[380312714,1755655845259,-151.0,0.000249,7]
[380312715,1755655845270,-151.379794,0.000249,7]
[380312716,1755655845281,-151.0,0.000249,7]
[380312717,1755655845292,-151.0,0.000249,7]
[380312718,1755655845303,-151.0,0.000249,7]
[380312719,1755655845314,-151.0,0.000249,7]
[380312720,1755655845324,-151.0,0.000249,7]
[380312721,1755655845335,-152.754106,0.000249,7]
[380312722,1755655845346,-151.0,0.000249,7]
[380312723,1755655845358,-27544.6981918,0.000249,2]
[380312726,1755655845495,-969.86,0.00024923,7]
[380312727,1755655845510,-557.02,0.00024931,2]
[380312728,1755655845520,-546.0,0.00024932,2]
[380312729,1755655845530,-500.0,0.00024932,2]
[380312730,1755655845539,-150.154,0.00024948,2]
[380312731,1755655845549,-195.869,0.00024948,2]
[380312732,1755655845558,-973.0,0.00024948,2]
[380312733,1755655845567,-2158.912,0.00024948,2]
[380312734,1755655845577,-639.856,0.00024948,2]
[380312735,1755655845586,-329.2848851,0.00024964,2]
[380312736,1755655845595,-155.843531,0.00025,15]
[380312737,1755655845604,-969.86,0.00025023,7]
[380312738,1755655845613,-151.35466111,0.000251,2]
[380312739,1755655845622,-665.74359983,0.00025123,2]
[380312740,1755655845631,-601.4068466,0.00025123,2]
[380312741,1755655845641,-871.4255764,0.00025123,2]
[380312742,1755655845649,-432.2343682,0.00025123,2]
[380312743,1755655845659,-864.1451624,0.00025123,2]
[380312744,1755655845668,-432.2343682,0.00025123,2]
[380312746,1755655845676,-969.86,0.00025123,7]
[380312748,1755655845685,-860.0,0.00025176,2]
[380312749,1755655845694,-464.8719552,0.00025178,2]
[380312750,1755655845703,-4484.33,0.000252,7]
[380312752,1755655845712,-557.02,0.00025205,2]
[380312753,1755655845722,-546.0,0.00025206,2]
[380312754,1755655845731,-500.0,0.00025206,2]
[380312756,1755655845741,-1867.0,0.00025222,2]
[380312757,1755655845750,-969.86,0.00025223,7]
[380312759,1755655845759,-155.843531,0.0002525,15]
[380312760,1755655845769,-155.843531,0.00025262,2]
[380312761,1755655845778,-155.843531,0.00025295,10]
[380312763,1755655845787,-1000.0,0.00025297,2]
[380312764,1755655845796,-24061.71304682,0.00025297,3]
[380312765,1755655845805,-12687.94051737,0.000253,3]
[380312766,1755655845814,-375.94359665,0.000253,3]
[380312767,1755655845823,-160.0,0.000253,3]
[380312768,1755655845833,-232.24568399,0.000253,3]
[380312769,1755655845842,-215.82729805,0.000253,3]
[380312770,1755655845851,-844.05985274,0.000253,3]
[380312771,1755655845860,-262.29165198,0.00025321,2]
[380312772,1755655845869,-969.86,0.00025323,7]
[380312773,1755655845878,-2000.0,0.00025358,2]
[380312774,1755655845887,-1500.0,0.00025381,2]
[380312775,1755655845896,-293.8943201,0.00025397,2]
[380312776,1755655845905,-293.8943201,0.00025397,2]
[380312777,1755655845915,-160.842982,0.00025397,2]
[380312778,1755655845924,-293.8943201,0.00025397,2]
[380312779,1755655845933,-293.8943201,0.00025397,2]
[380312780,1755655845942,-213.1162964,0.00025397,2]
[380312781,1755655845952,-293.8943201,0.00025397,2]
[380312782,1755655845962,-293.8943201,0.00025397,2]
[380312784,1755655845971,-154.7428896,0.00025397,2]
[380312786,1755655845981,-293.8943201,0.00025397,2]
[380312787,1755655845989,-153.0,0.00025397,2]
[380312788,1755655845998,-153.0,0.00025397,2]
[380312789,1755655846008,-153.0,0.00025397,2]
[380312790,1755655846017,-153.0,0.00025397,2]
[380312791,1755655846026,-293.9452039,0.00025397,2]
[380312792,1755655846036,-293.9452039,0.00025397,2]
[380312793,1755655846045,-293.9452039,0.00025397,2]
[380312794,1755655846054,-293.9452039,0.00025397,2]
[380312795,1755655846064,-587.5342212,0.00025397,2]
[380312796,1755655846078,-153.0,0.00025397,2]
[380312797,1755655846087,-153.0,0.00025397,2]
[380312798,1755655846096,-153.0,0.00025397,2]
[380312799,1755655846105,-591.5429856,0.00025397,2]
[380312800,1755655846114,-153.0,0.00025397,2]
[380312801,1755655846124,-153.0,0.00025397,2]
[380312802,1755655846134,-153.0,0.00025397,2]
[380312803,1755655846144,-153.0,0.00025397,2]
[380312804,1755655846153,-1001.74535346,0.00025421,2]
[380312805,1755655846163,-250.0,0.00025421,2]
[380312806,1755655846171,-969.86,0.00025423,7]
[380312807,1755655846180,-160.52154771,0.00025464,2]
[380312808,1755655846192,-557.2264427,0.00025479,2]
[380312809,1755655846204,-546.0,0.0002548,2]
[380312810,1755655846214,-500.0,0.0002548,2]
[380312811,1755655846224,-972.16,0.000255,7]
[380312812,1755655846234,-155.843531,0.000255,15]
[380312813,1755655846243,-969.86,0.00025523,7]
[380312814,1755655846252,-200.0,0.0002556,13]
[380312815,1755655846262,-969.86,0.00025623,7]
[380312816,1755655846272,-1142.8165022,0.00025683,2]
[380312817,1755655846282,-151.0,0.000257,14]
[380312818,1755655846293,-218.80414867,0.000257,2]
[380312819,1755655846303,-477.76639832,0.000257,2]
[380312820,1755655846312,-1911.06559327,0.000257,2]
[380312821,1755655846322,-4295.59768726,0.000257,2]
[380312822,1755655846332,-284.16698827,0.000257,2]
[380312823,1755655846342,-179.0,0.00025713,2]
[380312824,1755655846352,-969.86,0.00025723,7]
[380312825,1755655846361,-960.0,0.00025724,2]
[380312826,1755655846371,-155.843531,0.0002575,15]
[380312827,1755655846382,-546.0,0.00025754,2]
[380312828,1755655846391,-500.0,0.00025754,2]
[380312829,1755655846401,-500.0,0.00025773,2]
[380312830,1755655846415,-1418.740793,0.0002578,5]
[380312831,1755655846426,-1142.8165022,0.00025783,2]
[380312832,1755655846435,-163.37511434,0.00025788,2]
[380312833,1755655846444,-1964.73,0.00025789,10]
[380312834,1755655846455,-1000.0,0.00025792,20]
[380312835,1755655846466,-423290.96226915,0.00025799,15]
[380312836,1755655846478,-161.0,0.00025799,3]
[380312837,1755655846487,-160.23812421,0.00025799,3]
[380312838,1755655846499,-1762.0,0.00025799,3]
[380312839,1755655846509,-1762.0,0.00025799,3]
[380312840,1755655846518,-1762.0,0.00025799,3]
[380312841,1755655846527,-1762.0,0.00025799,3]
[380312842,1755655846537,-1762.0,0.00025799,3]
[380312843,1755655846546,-1762.0,0.00025799,3]
[380312844,1755655846555,-1762.0,0.00025799,3]
[380312845,1755655846564,-1762.0,0.00025799,3]
[380312846,1755655846574,-1762.0,0.00025799,3]
[380312847,1755655846584,-333.03578267,0.00025799,3]
[380312848,1755655846593,-152.564573,0.00025799,7]
[380312849,1755655846602,-151.0,0.00025799,7]
[380312850,1755655846612,-151.0,0.00025799,7]
[380312851,1755655846621,-152.141958,0.00025799,7]
[380312852,1755655846633,-151.0,0.00025799,7]
[380312853,1755655846642,-167.60558,0.00025799,7]
[380312854,1755655846652,-167.60558,0.00025799,7]
[380312855,1755655846662,-167.60558,0.00025799,7]
[380312856,1755655846671,-167.60558,0.00025799,7]
[380312857,1755655846680,-151.0,0.00025799,7]
[380312858,1755655846689,-151.0,0.00025799,7]
[380312859,1755655846699,-151.0,0.00025799,7]
[380312860,1755655846708,-151.0,0.00025799,7]
[380312861,1755655846717,-151.0,0.00025799,7]
[380312862,1755655846728,-151.0,0.00025799,7]
[380312863,1755655846738,-177.683862,0.00025799,7]
[380312864,1755655846747,-151.0,0.00025799,7]
[380312865,1755655846756,-151.0,0.00025799,7]
[380312866,1755655846765,-151.0,0.00025799,7]
[380312867,1755655846775,-151.0,0.00025799,7]
[380312868,1755655846784,-151.0,0.00025799,7]
[380312869,1755655846794,-151.0,0.00025799,7]
[380312870,1755655846802,-151.0,0.00025799,7]
[380312871,1755655846812,-151.0,0.00025799,7]
[380312872,1755655846821,-160.858758,0.00025799,7]
[380312873,1755655846830,-151.0,0.00025799,7]
[380312874,1755655846840,-213.627234,0.00025799,7]
[380312875,1755655846849,-182.643296,0.00025799,7]
[380312876,1755655846859,-151.0,0.00025799,7]
[380312877,1755655846869,-151.0,0.00025799,7]
[380312878,1755655846879,-151.0,0.00025799,7]
[380312879,1755655846889,-151.0,0.00025799,7]
[380312880,1755655846899,-151.0,0.00025799,7]
[380312881,1755655846907,-153.344798,0.00025799,7]
[380312882,1755655846917,-151.0,0.00025799,7]
[380312883,1755655846927,-151.0,0.00025799,7]
[380312884,1755655846936,-151.0,0.00025799,7]
[380312885,1755655846946,-152.778142,0.00025799,7]
[380312886,1755655846955,-179.843549,0.00025799,7]
[380312887,1755655846964,-151.0,0.00025799,7]
[380312888,1755655846974,-151.0,0.00025799,7]
[380312889,1755655846984,-151.0,0.00025799,7]
[380312890,1755655846993,-151.0,0.00025799,7]
[380312891,1755655847002,-151.0,0.00025799,7]
[380312892,1755655847012,-151.0,0.00025799,7]
[380312893,1755655847021,-151.0,0.00025799,7]
[380312894,1755655847031,-151.0,0.00025799,7]
[380312895,1755655847041,-151.0,0.00025799,7]
[380312896,1755655847050,-151.0,0.00025799,7]
[380312897,1755655847059,-214.209078,0.00025799,7]
[380312898,1755655847068,-255.873189,0.00025799,7]
[380312899,1755655847080,-255.873189,0.00025799,7]
[380312900,1755655847089,-255.873189,0.00025799,7]
[380312901,1755655847098,-255.873189,0.00025799,7]
[380312902,1755655847108,-1000.0,0.000258,5]
[380312903,1755655847117,-740.17292381,0.000258,2]
[380312904,1755655847128,-11184.08738196,0.000258,2]
[380312905,1755655847138,-645.0,0.000258,2]
[380312906,1755655847147,-2463.6170246,0.000258,2]
[380312907,1755655847157,-215.82729805,0.000258,3]
[380312908,1755655847167,-548.0,0.00025805,2]
[380312909,1755655847177,-1000.0,0.0002582,5]
[380312910,1755655847186,-969.86,0.00025823,7]
[380312911,1755655847197,-179.0,0.00025832,7]
[380312912,1755655847206,-1652.72530425,0.00025835,2]
[380312913,1755655847215,-7259.40671471,0.00025839,2]
[380312914,1755655847226,-1000.0,0.0002584,5]
[380312915,1755655847235,-1000.0,0.0002586,5]
[380312916,1755655847244,-160.0,0.00025863,4]
[380312917,1755655847254,-162.26452918,0.00025863,5]
[380312918,1755655847263,-179.0,0.0002587,2]
[380312919,1755655847272,-501.83896925,0.00025873,2]
[380312920,1755655847282,-155.843531,0.00025875,2]
[380312921,1755655847291,-1000.0,0.0002588,5]
[380312922,1755655847300,-1141.367745,0.0002588,5]
[380312923,1755655847309,-279.29476802,0.0002588,2]
[380312924,1755655847319,-1142.8165022,0.00025883,2]
[380312925,1755655847328,-79595.10736084,0.00025899,2]
[380312926,1755655847337,-3982.6064131,0.000259,2]
[380312927,1755655847347,-342476.9502256,0.000259,14]
[380312928,1755655847435,-49045.63971639,0.000259,14]
[380312929,1755655847547,186.918714,0.00013699,2]
[380312930,1755655847702,-285.929236,0.0002,5]
[380312931,1755655847714,-408.0,0.0002,5]
[380312932,1755655881601,500.0,7.7e-07,120]
[380312933,1755655889310,500.0,7.7e-07,120]
[380312934,1755655897331,500.0,7.7e-07,120]
[380312935,1755655905352,500.0,7.7e-07,120]
[380312937,1755655913379,500.0,7.7e-07,120]
[380312938,1755655914450,399.18759847,0.000201,49]
[380312939,1755655920114,500.0,7.7e-07,120]
[380312940,1755655927134,500.0,7.7e-07,120]
[380312941,1755655934288,500.0,7.7e-07,120]
[380312942,1755655941531,500.0,7.7e-07,120]
[380312943,1755655943037,370.97501229,0.000187,2]
[380312944,1755655948003,500.0,7.7e-07,120]
[380312945,1755655957697,175.0,7.7e-07,120]
[380312966,1755656282850,6449.09,0.000187,2]
[380313028,1755656711773,160.09371696,0.00025,120]
[380313031,1755656841129,-310.8305346,0.00019,2]
[380313032,1755656841149,-521.0062527,0.00019076,2]
[380313035,1755656884751,2049.08945184,0.00027061,60]
[380313036,1755656913686,1136.42345202,0.00027061,60]
[380313037,1755656920242,270.17657795,0.00027061,120]
[380313038,1755656921405,1171.18162392,0.00027061,120]
[380313078,1755657032093,-546.77197945,0.000189,2]
[380313079,1755657032149,-290.14367561,0.000189,2]
[380313080,1755657032158,-262.4063444,0.00018976,2]
[380313081,1755657032167,-300.0,0.00019037,2]
[380313082,1755657032176,-504.175,0.00019038,2]
[380313083,1755657032185,-2000.0,0.00019038,2]
[380313084,1755657032194,-2000.0,0.00019038,2]
[380313085,1755657032203,-2000.0,0.00019038,2]
[380313086,1755657032212,-2000.0,0.00019038,2]
[380313087,1755657032221,-2000.0,0.00019038,2]
[380313088,1755657032230,-2000.0,0.00019038,2]
[380313089,1755657032239,-2000.0,0.00019038,2]
[380313090,1755657032247,-2000.0,0.00019038,2]
[380313091,1755657032256,-2000.0,0.00019038,2]
[380313092,1755657032264,-2000.0,0.00019038,2]
[380313093,1755657032273,-1699.17634636,0.00019038,2]
[380313127,1755657038058,-300.82365364,0.00019038,2]
[380313129,1755657038068,-2000.0,0.00019038,2]
[380313131,1755657038077,-1915.67634636,0.00019038,2]
[380313136,1755657038113,-84.32365364,0.00019038,2]
[380313138,1755657038122,-2000.0,0.00019038,2]
[380313140,1755657038131,-2000.0,0.00019038,2]
[380313142,1755657038140,-2000.0,0.00019038,2]
[380313144,1755657038149,-2000.0,0.00019038,2]
[380313146,1755657038158,-2000.0,0.00019038,2]
[380313148,1755657038167,-2000.0,0.00019038,2]
[380313150,1755657038177,-2000.0,0.00019038,2]
[380313152,1755657038185,-2000.0,0.00019038,2]
[380313154,1755657038195,-1355.67634639,0.00019038,2]
[380313157,1755657038207,-644.32365361,0.00019038,2]
[380313159,1755657038216,-2000.0,0.00019038,2]
[380313161,1755657038225,-2000.0,0.00019038,2]
[380313163,1755657038234,-2000.0,0.00019038,2]
[380313165,1755657038243,-2000.0,0.00019038,2]
[380313167,1755657038252,-2000.0,0.00019038,2]
[380313169,1755657038261,-2000.0,0.00019038,2]
[380313171,1755657038270,-2000.0,0.00019038,2]
[380313173,1755657038280,-2000.0,0.00019038,2]
[380313175,1755657038290,-2000.0,0.00019038,2]
[380313177,1755657038300,-2000.0,0.00019038,2]
[380313179,1755657038310,-2000.0,0.00019038,2]
[380313181,1755657038320,-326.267,0.00019038,2]
[380313183,1755657038329,-678.9937473,0.00019076,2]
[380313185,1755657038338,-301.71043541,0.00019178,2]
[380313187,1755657038347,-481.85657075,0.00019178,2]
[380313189,1755657038357,-441.95664236,0.00019178,2]
[380313191,1755657038366,-486.75130162,0.00019178,2]
[380313193,1755657038375,-482.813576,0.00019178,2]
[380313195,1755657038384,-443.20510395,0.00019178,2]
[380313197,1755657038393,-487.74455695,0.00019178,2]
[380313199,1755657038402,-356.43939059,0.00019178,2]
[380313201,1755657038411,-501.30976746,0.00019178,2]
[380313203,1755657038420,-480.0,0.00019178,2]
[380313205,1755657038429,-481.88219619,0.00019178,2]
[380313207,1755657038438,-162.13,0.00019178,2]
[380313209,1755657038447,-490.34978692,0.00019178,2]
[380313210,1755657038456,-480.0,0.00019178,2]
[380313213,1755657038465,-487.11216892,0.00019178,2]
[380313214,1755657038474,-480.45150492,0.00019178,2]
[380313217,1755657038483,-480.68653407,0.00019178,2]
[380313218,1755657038492,-485.07614923,0.00019178,2]
[380313220,1755657038502,-485.6594456,0.00019178,2]
[380313222,1755657038511,-491.54413739,0.00019178,2]
[380313223,1755657038520,-481.43918249,0.00019178,2]
[380313224,1755657038529,-485.18338033,0.00019178,2]
[380313225,1755657038538,-481.05487587,0.00019178,2]
[380313226,1755657038547,-481.62300946,0.00019178,2]
[380313227,1755657038556,-482.12715741,0.00019178,2]
[380313228,1755657038566,-485.42924557,0.00019178,2]
[380313229,1755657038574,-484.67905224,0.00019178,2]
[380313230,1755657038584,-482.17488154,0.00019178,2]
[380313231,1755657038594,-461.86668872,0.00019178,2]
[380313232,1755657038603,-488.07503396,0.00019178,2]
[380313233,1755657038613,-480.0,0.00019178,2]
[380313234,1755657038622,-480.48984424,0.00019178,2]
[380313235,1755657038632,-480.0,0.00019178,2]
[380313236,1755657038641,-481.17013037,0.00019178,2]
[380313237,1755657038650,-442.57787327,0.00019178,2]
[380313238,1755657038659,-480.0,0.00019178,2]
[380313239,1755657038669,-480.0,0.00019178,2]
[380313240,1755657038678,-534.17320289,0.00019178,2]
[380313241,1755657038687,-462.50057608,0.00019178,2]
[380313242,1755657038697,-480.0,0.00019178,2]
[380313243,1755657038707,-471.83657103,0.00019178,2]
[380313244,1755657038717,-484.77863419,0.00019178,2]
[380313245,1755657038726,-487.14651893,0.00019178,2]
[380313246,1755657038735,-486.09222218,0.00019178,2]
[380313247,1755657038744,-480.59774382,0.00019178,2]
[380313248,1755657038754,-483.1313207,0.00019178,2]
[380313249,1755657038762,-544.81138317,0.00019178,2]
[380313250,1755657038771,-480.0,0.00019178,2]
[380313251,1755657038781,-503.37653614,0.00019178,2]
[380313252,1755657038790,-483.99336663,0.00019178,2]
[380313253,1755657038800,-482.3930509,0.00019178,2]
[380313254,1755657038815,-480.0,0.00019178,2]
[380313255,1755657038825,-483.1023738,0.00019178,2]
[380313256,1755657038834,-480.0,0.00019178,2]
[380313257,1755657038844,-480.0,0.00019178,2]
[380313258,1755657038855,-481.5290886,0.00019178,2]
[380313259,1755657038864,-483.61597513,0.00019178,2]
[380313260,1755657038874,-427.54403183,0.00019178,2]
[380313261,1755657038885,-534.74367439,0.00019178,2]
[380313262,1755657038897,-482.22561453,0.00019178,2]
[380313263,1755657038906,-480.0,0.00019452,2]
[380313264,1755657038916,-480.0,0.00019452,2]
[380313265,1755657038925,-420.87983962,0.00019452,2]
[380313266,1755657038934,-480.0,0.00019452,2]
[380313267,1755657038943,-480.0,0.00019452,2]
[380313268,1755657038952,-480.0,0.00019452,2]
[380313269,1755657038962,-480.0,0.00019452,2]
[380313270,1755657038971,-168.29826169,0.00019452,2]
[380313271,1755657038980,-480.0,0.00019452,2]
[380313272,1755657038989,-500.0,0.0001948,2]
[380313273,1755657038998,-500.0,0.0001948,2]
[380313274,1755657039007,-300.0,0.00019561,20]
[380313275,1755657039016,-300.0,0.00019561,20]
[380313276,1755657039026,-300.0,0.00019561,20]
[380313277,1755657039036,-500.0,0.00019622,2]
[380313278,1755657039045,-503.3356643,0.00019622,2]
[380313279,1755657039054,-500.0,0.00019688,2]
[380313280,1755657039065,-480.0,0.00019726,2]
[380313281,1755657039074,-480.0,0.00019726,2]
[380313282,1755657039083,-480.0,0.00019726,2]
[380313283,1755657039092,-480.0,0.00019726,2]
[380313284,1755657039101,-480.0,0.00019726,2]
[380313285,1755657039110,-480.0,0.00019726,2]
[380313286,1755657039119,-480.0,0.00019726,2]
[380313287,1755657039250,-500.0,0.00019771,2]
[380313288,1755657039260,-500.0,0.0001985,2]
[380313289,1755657039270,-662.74908384,0.000199,2]
[380313290,1755657039279,-212.55491477,0.0002,5]
[380313291,1755657039290,-480.0,0.0002,2]
[380313292,1755657039298,-480.0,0.0002,2]
[380313293,1755657039308,-480.0,0.0002,2]
[380313294,1755657039318,-480.0,0.0002,2]
[380313295,1755657039328,-480.0,0.0002,2]
[380313296,1755657039337,-480.0,0.0002,2]
[380313297,1755657039345,-480.0,0.0002,2]
[380313298,1755657039355,-505.21653535,0.00020028,2]
[380313299,1755657039364,-532.62004632,0.00020029,2]
[380313300,1755657039373,-161.0,0.00020099,5]
[380313301,1755657039382,-2001.87348724,0.0002012,2]
[380313302,1755657039392,-500.0,0.00020133,2]
[380313303,1755657039401,-505.93454093,0.00020133,2]
[380313304,1755657039410,-506.7579579,0.00020133,2]
[380313305,1755657039419,-1000.0,0.0002017,2]
[380313306,1755657039429,-186.918714,0.00020187,2]
[380313307,1755657039438,-181.55508002,0.00020226,2]
[380313308,1755657039447,-480.0,0.00020273,2]
[380313309,1755657039456,-480.0,0.00020273,2]
[380313310,1755657039465,-480.0,0.00020273,2]
[380313311,1755657039474,-480.0,0.00020273,2]
[380313312,1755657039484,-480.0,0.00020273,2]
[380313313,1755657039493,-480.0,0.00020273,2]
[380313314,1755657039502,-500.88651036,0.00020273,2]
[380313315,1755657039511,-297.61021,0.00020421,2]
[380313316,1755657039521,-1370.25865073,0.00020436,2]
[380313317,1755657039534,-432.89437507,0.00020436,2]
[380313318,1755657039543,-257.16735202,0.00020547,2]
[380313319,1755657039552,-480.0,0.00020547,2]
[380313320,1755657039563,-480.0,0.00020547,2]
[380313321,1755657039572,-480.0,0.00020547,2]
[380313322,1755657039581,-480.0,0.00020547,2]
[380313323,1755657039591,-480.0,0.00020547,2]
[380313324,1755657039600,-501.67355875,0.00020681,2]
[380313325,1755657039610,-480.0,0.00020821,2]
[380313326,1755657039621,-480.0,0.00020821,2]
[380313327,1755657039630,-480.0,0.00020821,2]
[380313328,1755657039640,-480.0,0.00020821,2]
[380313329,1755657039649,-480.0,0.00021095,2]
[380313330,1755657039659,-480.0,0.00021095,2]
[380313331,1755657039668,-480.0,0.00021095,2]
[380313332,1755657039677,-480.0,0.00021095,2]
[380313333,1755657039686,-693.27198909,0.0002133,2]
[380313334,1755657039696,-480.0,0.00021369,2]
[380313335,1755657039705,-480.0,0.00021369,2]
[380313336,1755657039715,-480.0,0.00021369,2]
[380313337,1755657039725,-480.0,0.00021369,2]
[380313338,1755657039734,-215.82729805,0.00021539,2]
[380313339,1755657039743,-480.0,0.00021643,2]
[380313340,1755657039753,-480.0,0.00021643,2]
[380313341,1755657039763,-480.0,0.00021643,2]
[380313342,1755657039772,-480.0,0.00021643,2]
[380313343,1755657039781,-160.0,0.00021771,2]
[380313344,1755657039791,-522.60627458,0.00021799,2]
[380313345,1755657039801,-480.0,0.00021799,2]
[380313346,1755657039814,-480.0,0.00021799,2]
[380313347,1755657039823,-548.82642241,0.00021799,2]
[380313348,1755657039833,-1000.0,0.000218,7]
[380313349,1755657039842,-480.0,0.00021917,2]
[380313350,1755657039852,-492.22485948,0.00021917,2]